{"text_format":"1","workbook":"xlsx","n_sheets":4,"sheets":["فاتورة","مشتريات","مبيعات","رصيد"],"not_rendered":{"charts":0,"images":2,"macros":1,"external_links":1,"defined_names":0,"comments":0,"pivot_tables":0},"unopened":[],"bounds":{"document_bytes":16777216,"sheet_cells":100000,"rows_first":2000,"rows_last":500,"rows_between":2000,"halvings":0,"cell_chars":16384,"cell_head_chars":4096},"cells_cut":0,"cells_raw":0,"read":"whole","date_system":"1900"}

{"sheet":"فاتورة","index":0,"n_rows":35,"n_cols":14,"rows_kept":35,"cut":false,"hidden":false,"merged":[[30,5,30,6],[31,0,31,1],[31,3,31,4],[31,5,34,7],[32,0,32,2],[32,3,32,4],[33,0,33,2],[33,3,33,4],[34,0,34,2],[34,3,34,4],[30,0,30,1],[30,3,30,4],[25,1,25,4],[26,1,26,4],[27,1,27,4],[28,1,28,4],[29,1,29,4],[24,1,24,4],[13,1,13,4],[14,1,14,4],[15,1,15,4],[16,1,16,4],[17,1,17,4],[18,1,18,4],[19,1,19,4],[20,1,20,4],[21,1,21,4],[22,1,22,4],[23,1,23,4],[9,1,9,4],[10,1,10,4],[11,1,11,4],[12,1,12,4],[7,0,7,1],[7,6,7,7],[3,0,3,7],[4,0,4,2],[4,3,4,7],[5,0,5,2],[5,3,5,7],[6,0,6,2],[6,3,6,7]]}
[null,11]
[]
[]
["فاتورة إلى"]
["اسم العميل"]
["العنوان"]
["الهاتف"]
["رقم الفاتورة",null,null,null,null,"التاريخ ",null,null,null,null,null,"بيض"]
[]
["كود","البيان",null,null,null,"الكميه","السعر","الإجمالي"]
[null,null,null,null,null,null,null,{"$f":"IF(G11=\"\",\"\",G11*F11)","v":""},null,"بلدي","مزارع",null,null,"بيض"]
[null,null,null,null,null,null,null,null,null,null,null,null,null,"حلاوة طحينية"]
[null,null,null,null,null,null,null,{"$f":"IF(G13=\"\",\"\",G13*F13)","v":""},null,null,null,null,null,"خل"]
[null,null,null,null,null,null,null,"",null,null,null,null,null,"زبدة"]
[null,null,null,null,null,null,null,null,null,null,null,null,null,"زيت"]
[null,null,null,null,null,null,null,{"$f":"IF(G16=\"\",\"\",G16*F16)","v":""},null,null,null,null,null,"سمنة"]
[null,null,null,null,null,null,null,"",null,null,null,null,null,"طحينة"]
[null,null,null,null,null,null,null,null,null,null,null,null,null,"عسل قصب"]
[null,null,null,null,null,null,null,{"$f":"IF(G19=\"\",\"\",G19*F19)","v":""},null,null,null,null,null,"عسل نحل"]
[null,null,null,null,null,null,null,""]
[]
[null,null,null,null,null,null,null,{"$f":"IF(G22=\"\",\"\",G22*F22)","v":""}]
[null,null,null,null,null,null,null,""]
[]
[null,null,null,null,null,null,null,{"$f":"IF(G25=\"\",\"\",G25*F25)","v":""}]
[null,null,null,null,null,null,null,""]
[]
[null,null,null,null,null,null,null,{"$f":"IF(G28=\"\",\"\",G28*F28)","v":""}]
[null,null,null,null,null,null,null,""]
[null,null,null,null,null,null,null,""]
["الخصم",null,0.14000000000000001,{"$f":"H31*C31","v":0},null,"الإجمالي",null,{"$f":"SUM(H11:H30)","v":0}]
["الضريبة",null,0.01,{"$f":"H31*C32","v":0},null,{"$f":"IF([1]Monnaies!$P$3=100,(IF(OR(D33=0,D33=\"\"),\"\",IF([1]Monnaies!#REF!=TRUE,IF([1]Monnaies!#REF!=1,[1]Monnaies!$N$3,[1]Monnaies!$N$4),Convert100(D33,J4,[1]Monnaies!$P$2)&\" \"&[1]Monnaies!$F$12))),(IF(OR(D33=0,D33=\"\"),\"\",IF([1]Monnaies!#REF!=TRUE,IF([1]Monnaies!#REF!=1,[1]Monnaies!$N$3,[1]Monnaies!$N$4),Convert1000(D33)&\" \"&[1]Monnaies!$F$12))))","v":""}]
["القيمة الإجمالية",null,null,{"$f":"H31+D31-D32","v":0}]
["المدفوع"]
["المتبقي",null,null,{"$f":"C33-C34","v":0}]

{"sheet":"مشتريات","index":1,"n_rows":0,"n_cols":0,"rows_kept":0,"cut":false,"hidden":false,"merged":[]}

{"sheet":"مبيعات","index":2,"n_rows":0,"n_cols":0,"rows_kept":0,"cut":false,"hidden":false,"merged":[]}

{"sheet":"رصيد","index":3,"n_rows":48,"n_cols":5,"rows_kept":48,"cut":false,"hidden":false,"merged":[]}
["كود الصنف","وصف الصنف","الصنف","السعر","الكمية"]
[1,"بيض","بلدي"]
[2,"بيض","مزارع"]
[3,"حلاوة طحينية","تركي علبة كبيرة شيكولاتة"]
[4,"حلاوة طحينية","تركي علبة كبيرة مكسرات"]
[5,"حلاوة طحينية","تركي علبة كبيرة سادة"]
[6,"حلاوة طحينية","تركي علبة صغيرة شيكولاتة "]
[7,"حلاوة طحينية","تركي علبة صغيرة مكسرات"]
[8,"حلاوة طحينية","تركي علبة صغيرة سادة"]
[9,"حلاوة طحينية","قطع"]
[10,"حلاوة طحينية","الرشيدي نص كيلو"]
[11,"حلاوة طحينية","تركي ربع كيلو"]
[12,"حلاوة طحينية","النصر علبة كبيرة سادة"]
[13,"حلاوة طحينية","النصر علبة صغيرة سادة"]
[14,"حلاوة طحينية","النصر علبة صغيرة بالشيكولاتة"]
[15,"حلاوة طحينية","زنك 4 كيلو تركي بالشيكولاتة"]
[16,"حلاوة طحينية","زنك 4 كيلو تركي سادة"]
[17,"حلاوة طحينية","زنك 4 كيلو تركي بالمكسرات"]
[18,"خل","بيور"]
[19,"خل","المهندس"]
[20,"زبدة","صفراء نيوزيلاندي"]
[21,"زيت","زيتون الحواج"]
[22,"زيت","زيتون حدائق سوريا"]
[23,"زيت","حار"]
[24,"زيت","صني"]
[25,"زيت","عافية 3 لتر"]
[26,"زيت","الأصيل 3 لتر"]
[27,"زيت","سندباد"]
[28,"زيت","مبروكة"]
[29,"زيت","صولو"]
[30,"زيت","صويا سايب"]
[31,"سمنة","جنة 2 كيلو"]
[32,"سمنة","الهانم 3 كيلو"]
[33,"طحينة","سمسم سايبة"]
[34,"عسل قصب","دبس التمر"]
[35,"عسل قصب","إسود"]
[36,"عسل نحل","بشمع نص كيلو"]
[37,"عسل نحل","حبة البركة نص كيلو"]
[38,"عسل نحل","زهرة البرسيم نص كيلو"]
[39,"عسل نحل","موالح نص كيلو"]
[40,"عسل نحل","البردقوس نص كيلو"]
[41,"عسل نحل","حبة البركة  كيلو"]
[42,"عسل نحل","زهرة البرسيم  كيلو"]
[43,"عسل نحل","موالح  كيلو"]
[44,"عسل نحل","البردقوس  كيلو"]
[45,"عسل نحل","جبلي كيلو"]
[46,"عسل نحل","صحراوي نص كيلو"]
[47,"عسل قصب","مفتقة عسل إسود"]